{"text_format":"3","workbook":"xlsx","n_sheets":7,"sheets":["Cinema (exceto arranjos)","TV (exceto arranjos)","Comercialização(exceto arranjos","Arranjos Regionais - Longa","Arranjos Regionais - TV","Arranjos - Comercialização","Games"],"read":"whole","date_system":"1900"}

{"sheet":"Cinema (exceto arranjos)","index":0,"n_rows":24,"n_cols":9,"rows_kept":24}
[null,"*Tabela para projeto que não tenha sido contratado em outra chamada de produção do FSA*"]
[]
[null,"Valor correspondente ao investimento do FSA",null,null,"Equity",{"$f":"C3/C4","v":{"$error":"#DIV/0!"}}]
[null,"Orçamento dos itens financiáveis (total do orçamento de produção somado ao gerenciamento)",null,null,{"v":0.02,"d":"0"},{"$f":"IF(C3<=200000,(0.02*(C3-(C3-200000)))-(0.02*(200000-C3)),0.02*200000)","v":{"v":0,"d":"0.00%"}}]
[null,"Alíquota de participação sobre a RBD",{"$f":"IF(C3=0,0,SUM(F4:F8)/C3)","v":{"v":0,"d":"0.0%"}},null,{"v":0.03,"d":"0"},{"$f":"IF(AND(C3>200000,C3<=500000),(0.03*(C3-200000)),IF(C3>500000,0.03*300000,0))","v":{"v":0,"d":"0.00%"}}]
[null,"Alíquota de participação sobre a RLP, até o retorno integral do valor do investimento",{"$f":"IF(C3=0,0,0.8*F3)","v":{"v":0,"d":"0.0%"}},null,{"v":0.05,"d":"0"},{"$f":"IF(AND(C3>500000,C3<=1000000),(0.05*(C3-500000)),IF(C3>1000000,0.05*500000,0))","v":{"v":0,"d":"0.00%"}}]
[null,"Alíquota de participação sobre a RLP, após o retorno integral do valor do investimento",{"$f":"IF(C3=0,0,0.4*F3)","v":{"v":0,"d":"0.0%"}},null,{"v":0.08,"d":"0"},{"$f":"IF(AND(C3>1000000,C3<=3000000),(0.08*(C3-1000000)),IF(C3>3000000,0.08*2000000,0))","v":{"v":0,"d":"0.00%"}}]
[null,"Alíquota de participação sobre licenciamento de marcas",{"$f":"IF(C3=0,0,0.4*F3)","v":{"v":0,"d":"0.0%"}},null,{"v":0.12,"d":"0"},{"$f":"IF(AND(C3>3000000),(0.12*(C3-3000000)),0)","v":{"v":0,"d":"0.00%"}}]
[null,"Alíquota de participação sobre novas temporadas de obras seriadas ou longas-metragens de uma mesma franquia ",{"v":0.02,"d":"2.0%"}]
[]
[]
[null,"*Tabela para projeto que já tenha sido contratado em outra chamada de produção do FSA a partir de 2013*"]
[]
[null,"Valor correspondente ao investimento do FSA na chamada em análise",null,null,"Equity",{"$f":"$C$14/$C$17","v":{"$error":"#DIV/0!"}},null,"Equity*",{"$f":"C16/C17","v":{"$error":"#DIV/0!"}}]
[null,"Valor correspondente ao investimento do FSA em outras chamadas de 2013",null,null,{"v":0.02,"d":"0"},{"$f":"IF($C$14<=200000,(0.02*($C$14-($C$14-200000)))-(0.02*(200000-$C$14)),0.02*200000)","v":{"v":0,"d":"0.00%"}},null,0.02,{"$f":"IF(C16<=200000,(0.02*(C16-(C16-200000)))-(0.02*(200000-C16)),0.02*200000)","v":0}]
[null,"Valor correspondente ao investimento TOTAL do FSA",{"$f":"C14+C15","v":0},null,{"v":0.03,"d":"0"},{"$f":"IF(AND($C$14>200000,$C$14<=500000),(0.03*($C$14-200000)),IF($C$14>500000,0.03*300000,0))","v":{"v":0,"d":"0.00%"}},null,0.03,{"$f":"IF(AND(C16>200000,C16<=500000),(0.03*(C16-200000)),IF(C16>500000,0.03*300000,0))","v":0}]
[null,"Orçamento dos itens financiáveis (total do orçamento de produção somado ao gerenciamento)",null,null,{"v":0.05,"d":"0"},{"$f":"IF(AND($C$14>500000,$C$14<=1000000),(0.05*($C$14-500000)),IF($C$14>1000000,0.05*500000,0))","v":{"v":0,"d":"0.00%"}},null,0.05,{"$f":"IF(AND(C16>500000,C16<=1000000),(0.05*(C16-500000)),IF(C16>1000000,0.05*500000,0))","v":0}]
[null,"Alíquota de participação sobre a RBD somado os investimentos",{"$f":"IF(C14=0,0,SUM(I15:I19)/C16)","v":{"v":0,"d":"0.0%"}},null,{"v":0.08,"d":"0"},{"$f":"IF(AND($C$14>1000000,$C$14<=3000000),(0.08*($C$14-1000000)),IF($C$14>3000000,0.08*2000000,0))","v":{"v":0,"d":"0.00%"}},null,0.08,{"$f":"IF(AND(C16>1000000,C16<=3000000),(0.08*(C16-1000000)),IF(C16>3000000,0.08*2000000,0))","v":0}]
[null,"Alíquota de participação sobre a RBD no(s) contrato(s) da(s) outra(s) chamada(s)",null,null,{"v":0.12,"d":"0"},{"$f":"IF(AND(C14>3000000),(0.12*(C14-3000000)),0)","v":{"v":0,"d":"0.00%"}},null,0.12,{"$f":"IF(AND(C16>3000000),(0.12*(C16-3000000)),0)","v":0}]
[null,"Alíquota de participação sobre a RBD que deverá ser usada no contrato da chamada em questão",{"$f":"C18-C19","v":{"v":0,"d":"0.0%"}}]
[null,"Alíquota de participação sobre a RLP, até o retorno integral do valor do investimento",{"$f":"IF(C14=0,0,0.8*F14)","v":{"v":0,"d":"0.0%"}}]
[null,"Alíquota de participação sobre a RLP, após o retorno integral do valor do investimento",{"$f":"IF(C14=0,0,0.4*F14)","v":{"v":0,"d":"0.0%"}}]
[null,"Alíquota de participação sobre licenciamento de marcas",{"$f":"IF(C14=0,0,0.4*F14)","v":{"v":0,"d":"0.0%"}}]
[null,"Alíquota de participação sobre novas temporadas de obras seriadas ou longas-metragens de uma mesma franquia ",{"v":0.02,"d":"2.0%"}]

{"sheet":"TV (exceto arranjos)","index":1,"n_rows":8,"n_cols":6,"rows_kept":8}
[]
[null,"Valor correspondente ao investimento do FSA",null,null,"Equity",{"$f":"C2/C3","v":{"$error":"#DIV/0!"}}]
[null,"Orçamento dos itens financiáveis (total do orçamento de produção somado ao gerenciamento)"]
[null,"Alíquota de participação sobre a Receita de Pré-Licenciamento",{"$f":"IF(C2=0,0,F2)","v":{"v":0,"d":"0.00%"}}]
[null,"Alíquota de participação sobre a RLP, até o retorno integral do valor do investimento",{"$f":"IF(C2=0,0,0.8*F2)","v":{"v":0,"d":"0.00%"}}]
[null,"Alíquota de participação sobre a RLP, após o retorno integral do valor do investimento",{"$f":"IF(C2=0,0,0.4*F2)","v":{"v":0,"d":"0.00%"}}]
[null,"Alíquota de participação sobre licenciamento de marcas",{"$f":"IF(C2=0,0,0.4*F2)","v":{"v":0,"d":"0.00%"}}]
[null,"Alíquota de participação sobre novas temporadas de obras seriadas ou longas-metragens de uma mesma franquia ",{"v":0.02,"d":"2.00%"}]

{"sheet":"Comercialização(exceto arranjos","index":2,"n_rows":14,"n_cols":7,"rows_kept":14}
[null,"Prodecine 03/2013"]
[null,"Valor correspondente ao investimento do FSA"]
[null,"Orçamento dos itens financiáveis"]
[null,"Alíquota de retorno sobre a RLD",{"$f":"IF(C2=0,0,C2/C3)","v":{"v":0,"d":"0.00%"}}]
[null,"Alíquota de participação sobre a RBD",{"v":0.02,"d":"2.00%"}]
[]
[]
[]
[]
[null,"Prodecine 03/2016",{"$nulls":3},"Equity",{"$f":"C11/C12","v":{"$error":"#DIV/0!"}}]
[null,"Valor correspondente ao investimento do FSA",{"$nulls":3},{"v":0.02,"d":"2%"},{"$f":"IF(C11<=200000,(0.02*(C11-(C11-200000)))-(0.02*(200000-C11)),0.02*200000)","v":0}]
[null,"Orçamento dos itens financiáveis",{"$nulls":3},{"v":0.03,"d":"3%"},{"$f":"IF(AND(C11>200000,C11<=500000),(0.03*(C11-200000)),IF(C11>500000,0.03*300000,0))","v":0}]
[null,"Alíquota de retorno sobre a RLD",{"$f":"IF(C11=0,0,G10)","v":{"v":0,"d":"0.00%"}}]
[null,"Alíquota de participação sobre a RBD",{"$f":"IF(C11=0,0,SUM(G11:G12)/C11)","v":{"v":0,"d":"0.00%"}}]

{"sheet":"Arranjos Regionais - Longa","index":3,"n_rows":63,"n_cols":9,"rows_kept":63,"merged":[[12,1,12,2]]}
[null,"*Tabela para projetos de arranjos exceto projetos contemplados em editais da RIOFILME ou SPCINE*"]
[]
[null,"Valor correspondente ao investimento do FSA (A)",null,null,"Equity",{"$f":"C3/C6","v":{"$error":"#DIV/0!"}}]
[null,"Valor correspondente ao investimento do Ente Local (B)",null,null,{"v":0.02,"d":"0"},{"$f":"IF(C3<=200000,(0.02*(C3-(C3-200000)))-(0.02*(200000-C3)),0.02*200000)","v":{"v":0,"d":"0.00%"}}]
[null,"Proporção A/B1:",{"$f":"IF(C3=0,0,C3/C4)","v":{"v":0,"d":"0.0"}},null,{"v":0.03,"d":"3%"},{"$f":"IF(AND(C3>200000,C3<=500000),(0.03*(C3-200000)),IF(C3>500000,0.03*300000,0))","v":0}]
[null,"Orçamento dos itens financiáveis (total do orçamento de produção somado ao gerenciamento)",null,null,{"v":0.05,"d":"0"},{"$f":"IF(AND(C3>500000,C3<=1000000),(0.05*(C3-500000)),IF(C3>1000000,0.05*500000,0))","v":{"v":0,"d":"0.00%"}}]
[null,"Alíquota de participação sobre a Receita Bruta de Distribuição",{"$f":"IF(C3=0,0,SUM(F4:F8)/C3)","v":{"v":0,"d":"0.00%"}},null,{"v":0.08,"d":"8%"},{"$f":"IF(AND(C3>1000000,C3<=3000000),(0.08*(C3-1000000)),IF(C3>3000000,0.08*2000000,0))","v":0}]
[null,"Alíquota de participação sobre a RLP, até o retorno integral do valor do investimento",{"$f":"IF(C3=0,0,0.8*F3)","v":{"v":0,"d":"0.00%"}},null,{"v":0.12,"d":"12%"},{"$f":"IF(AND(C3>3000000),(0.12*(C3-3000000)),0)","v":0}]
[null,"Alíquota de participação sobre a RLP, após o retorno integral do valor do investimento",{"$f":"IF(C3=0,0,0.4*F3)","v":{"v":0,"d":"0.00%"}}]
[null,"Alíquota de participação sobre licenciamento de marcas",{"$f":"IF(C3=0,0,0.4*F3)","v":{"v":0,"d":"0.00%"}}]
[null,"Alíquota de participação sobre novas temporadas de obras seriadas ou longas-metragens de uma mesma franquia ",{"v":0.02,"d":"2.00%"}]
[]
[null,"ATENÇÃO: Verificar se a proporção A/B está de acordo com a proporção máxima para a suplementação de recursos do FSA definida na Chamada Pública (item 5):\n - Até duas vezes (2) para órgãos e entidades do Grupo A (N, NE e CO);\n - Até uma vez e meia (1,5) para órgãos e entidades do Grupo B (MG, ES e S);\n - Até uma vez (1) para órgãos e entidades do Grupo C (RJ e SP);"]
[]
[]
[null,"*Tabela para projetos de arranjos contemplados em editais da RIOFILME ou SPCINE*"]
[]
[null,"Valor correspondente ao investimento do FSA (A)",null,null,"Equity",{"$f":"C20/C22","v":{"$error":"#DIV/0!"}}]
[null,"Valor correspondente ao investimento do Ente Local (B)",null,null,{"v":0.02,"d":"2%"},{"$f":"IF(C20<=200000,(0.02*(C20-(C20-200000)))-(0.02*(200000-C20)),0.02*200000)","v":{"v":0,"d":"0%"}}]
[null,"Valor correspondente ao investimento total",{"$f":"C18+C19","v":{"v":0,"d":"R$ 0.00"}},null,{"v":0.03,"d":"3%"},{"$f":"IF(AND(C20>200000,C20<=500000),(0.03*(C20-200000)),IF(C20>500000,0.03*300000,0))","v":{"v":0,"d":"0%"}}]
[null,"Proporção A/B1:",{"$f":"IF(C18=0,0,C18/C19)","v":{"v":0,"d":"0.0"}},null,{"v":0.05,"d":"5%"},{"$f":"IF(AND(C20>500000,C20<=1000000),(0.05*(C20-500000)),IF(C20>1000000,0.05*500000,0))","v":{"v":0,"d":"0%"}}]
[null,"Orçamento dos itens financiáveis (total do orçamento de produção somado ao gerenciamento)",null,null,{"v":0.08,"d":"8%"},{"$f":"IF(AND(C20>1000000,C20<=3000000),(0.08*(C20-1000000)),IF(C20>3000000,0.08*2000000,0))","v":{"v":0,"d":"0%"}}]
[null,"Alíquota de participação sobre a Receita Bruta de Distribuição",{"$f":"IF(C18=0,0,(SUM(F19:F23)/C20)/2)","v":{"v":0,"d":"0.00%"}},null,{"v":0.12,"d":"12%"},{"$f":"IF(AND(C20>3000000),(0.12*(C20-3000000)),0)","v":{"v":0,"d":"0%"}}]
[null,"Alíquota de participação sobre a RLP, até o retorno integral do valor do investimento",{"$f":"IF(C18=0,0,(0.8*F18)/2)","v":{"v":0,"d":"0.00%"}}]
[null,"Alíquota de participação sobre a RLP, após o retorno integral do valor do investimento",{"$f":"IF(C18=0,0,(0.4*F18)/2)","v":{"v":0,"d":"0.00%"}}]
[null,"Alíquota de participação sobre licenciamento de marcas",{"$f":"IF(C18=0,0,(0.4*F18)/2)","v":{"v":0,"d":"0.00%"}}]
[null,"Alíquota de participação sobre novas temporadas de obras seriadas ou longas-metragens de uma mesma franquia ",{"v":0.02,"d":"2.00%"}]
[]
[]
[null,"*Tabela para projetos de arranjos que já tenham sido contratados em outra chamada de produção do FSA a partir de 2013 exceto projetos contemplados em editais da RIOFILME ou SPCINE *"]
[]
[null,"Valor correspondente ao investimento do FSA na chamada em análise (A)",null,null,"Equity",{"$f":"C32/C38","v":{"$error":"#DIV/0!"}},null,"Equity*",{"$f":"C37/C38","v":{"$error":"#DIV/0!"}}]
[null,"Valor correspondente ao investimento do Ente Local (B)",null,null,{"v":0.02,"d":"R$ 0.02"},{"$f":"IF(C32<=200000,(0.02*(C32-(C32-200000)))-(0.02*(200000-C32)),0.02*200000)","v":0},null,0.02,{"$f":"IF(C37<=200000,(0.02*(C37-(C37-200000)))-(0.02*(200000-C37)),0.02*200000)","v":0}]
[null,"Valor correspondente ao investimento TOTAL de Arranjos",{"$f":"C32+C33","v":{"v":0,"d":"R$ 0.00"}},null,{"v":0.03,"d":"R$ 0.03"},{"$f":"IF(AND(C32>200000,C32<=500000),(0.03*(C32-200000)),IF(C32>500000,0.03*300000,0))","v":0},null,0.03,{"$f":"IF(AND(C37>200000,C37<=500000),(0.03*(C37-200000)),IF(C37>500000,0.03*300000,0))","v":0}]
[null,"Proporção A/B1:",{"$f":"IF(C32=0,0,C32/C33)","v":{"v":0,"d":"0.0"}},null,{"v":0.05,"d":"R$ 0.05"},{"$f":"IF(AND(C32>500000,C32<=1000000),(0.05*(C32-500000)),IF(C32>1000000,0.05*500000,0))","v":0},null,0.05,{"$f":"IF(AND(C37>500000,C37<=1000000),(0.05*(C37-500000)),IF(C37>1000000,0.05*500000,0))","v":0}]
[null,"Valor correspondente ao investimento do FSA em outras chamadas de 2013 ( C)",null,null,{"v":0.08,"d":"R$ 0.08"},{"$f":"IF(AND(C32>1000000,C32<=3000000),(0.08*(C32-1000000)),IF(C32>3000000,0.08*2000000,0))","v":0},null,0.08,{"$f":"IF(AND(C37>1000000,C37<=3000000),(0.08*(C37-1000000)),IF(C37>3000000,0.08*2000000,0))","v":0}]
[null,"Valor correspondente ao investimento TOTAL do FSA",{"$f":"C32+C36","v":{"v":0,"d":"R$ 0.00"}},null,{"v":0.12,"d":"R$ 0.12"},{"$f":"IF(AND(C32>3000000),(0.12*(C32-3000000)),0)","v":0},null,0.12,{"$f":"IF(AND(C37>3000000),(0.12*(C37-3000000)),0)","v":0}]
[null,"Orçamento dos itens financiáveis (total do orçamento de produção somado ao gerenciamento)"]
[null,"Alíquota de participação sobre a RBD somado os investimentos",{"$f":"IF(C32=0,0,(SUM(I33:I37)/C37))","v":{"v":0,"d":"0.00%"}}]
[null,"Alíquota de participação sobre a RBD no contrato da outra chamada"]
[null,"Alíquota de participação sobre a RBD que o analista deverá usar no relatório e no ofício de contratação",{"$f":"C39-C40","v":{"v":0,"d":"0.00%"}}]
[null,"Alíquota de participação sobre a RLP, até o retorno integral do valor do investimento",{"$f":"IF(C32=0,0,0.8*F32)","v":{"v":0,"d":"0.00%"}}]
[null,"Alíquota de participação sobre a RLP, após o retorno integral do valor do investimento",{"$f":"IF(C32=0,0,0.4*F32)","v":{"v":0,"d":"0.00%"}}]
[null,"Alíquota de participação sobre licenciamento de marcas",{"$f":"IF(C32=0,0,0.4*F32)","v":{"v":0,"d":"0.00%"}}]
[null,"Alíquota de participação sobre novas temporadas de obras seriadas ou longas-metragens de uma mesma franquia ",{"v":0.02,"d":"2.00%"}]
[]
[]
[null,"*Tabela para projetos de arranjos contemplados em editais da RIOFILME ou SPCINE que já tenham sido contratados em outra chamada de produção do FSA a partir de 2013*"]
[]
[null,"Valor correspondente ao investimento do FSA na chamada em análise (A)",null,null,"Equity",{"$f":"C55/C56","v":{"$error":"#DIV/0!"}},null,"Equity*",{"$f":"C52/C56","v":{"$error":"#DIV/0!"}}]
[null,"Valor correspondente ao investimento do Ente Local em análise (B)",null,null,{"v":0.02,"d":"2%"},{"$f":"IF(C55<=200000,(0.02*(C55-(C55-200000)))-(0.02*(200000-C55)),0.02*200000)","v":{"v":0,"d":"0%"}},null,0.02,{"$f":"IF(C52<=200000,(0.02*(C52-(C52-200000)))-(0.02*(200000-C52)),0.02*200000)","v":0}]
[null,"Valor correspondente ao investimento TOTAL de Arranjos",{"$f":"C50+C51","v":{"v":0,"d":"R$ 0.00"}},null,{"v":0.03,"d":"3%"},{"$f":"IF(AND(C55>200000,C55<=500000),(0.03*(C55-200000)),IF(C55>500000,0.03*300000,0))","v":{"v":0,"d":"0%"}},null,0.03,{"$f":"IF(AND(C52>200000,C52<=500000),(0.03*(C52-200000)),IF(C52>500000,0.03*300000,0))","v":0}]
[null,"Proporção A/B1:",{"$f":"IF(C50=0,0,C50/C51)","v":{"v":0,"d":"0.0"}},null,{"v":0.05,"d":"5%"},{"$f":"IF(AND(C55>500000,C55<=1000000),(0.05*(C55-500000)),IF(C55>1000000,0.05*500000,0))","v":{"v":0,"d":"0%"}},null,0.05,{"$f":"IF(AND(C52>500000,C52<=1000000),(0.05*(C52-500000)),IF(C52>1000000,0.05*500000,0))","v":0}]
[null,"Valor correspondente ao investimento do FSA em outras chamadas de 2013 (C )",null,null,{"v":0.08,"d":"8%"},{"$f":"IF(AND(C55>1000000,C55<=3000000),(0.08*(C55-1000000)),IF(C55>3000000,0.08*2000000,0))","v":{"v":0,"d":"0%"}},null,0.08,{"$f":"IF(AND(C52>1000000,C52<=3000000),(0.08*(C52-1000000)),IF(C52>3000000,0.08*2000000,0))","v":0}]
[null,"Valor correspondente ao investimento TOTAL do FSA",{"$f":"C50+C54","v":{"v":0,"d":"R$ 0.00"}},null,{"v":0.12,"d":"12%"},{"$f":"IF(AND(C55>3000000),(0.12*(C55-3000000)),0)","v":{"v":0,"d":"0%"}},null,0.12,{"$f":"IF(AND(C52>3000000),(0.12*(C52-3000000)),0)","v":0}]
[null,"Orçamento dos itens financiáveis (total do orçamento de produção somado ao gerenciamento)"]
[null,"Alíquota de participação sobre a RBD somado os investimentos",{"$f":"IF(C50=0,0,(SUM(F51:F55)/C55))","v":{"v":0,"d":"0.00%"}}]
[null,"Alíquota de participação sobre a RBD no contrato da outra chamada"]
[null,"Alíquota de participação sobre a RBD que o analista deverá usar no relatório e no ofício de contratação",{"$f":"C57-C58","v":{"v":0,"d":"0.00%"}}]
[null,"Alíquota de participação sobre a RLP, até o retorno integral do valor do investimento",{"$f":"IF(C50=0,0,(0.8*I50)/2)","v":{"v":0,"d":"0.00%"}}]
[null,"Alíquota de participação sobre a RLP, após o retorno integral do valor do investimento",{"$f":"IF(C50=0,0,(0.4*I50)/2)","v":{"v":0,"d":"0.00%"}}]
[null,"Alíquota de participação sobre licenciamento de marcas",{"$f":"IF(C50=0,0,(0.4*I50)/2)","v":{"v":0,"d":"0.00%"}}]
[null,"Alíquota de participação sobre novas temporadas de obras seriadas ou longas-metragens de uma mesma franquia ",{"v":0.02,"d":"2.00%"}]

{"sheet":"Arranjos Regionais - TV","index":4,"n_rows":12,"n_cols":6,"rows_kept":12,"merged":[[11,1,11,2]]}
[]
[null,"Valor correspondente ao investimento do FSA (A)",null,null,"Equity",{"$f":"C2/C5","v":{"$error":"#DIV/0!"}}]
[null,"Valor correspondente ao investimento do Ente Local (B)"]
[null,"Proporção A/B1:",{"$f":"IF(C2=0,0,C2/C3)","v":{"v":0,"d":"R$ 0.00"}}]
[null,"Orçamento dos itens financiáveis (total do orçamento de produção somado ao gerenciamento)"]
[null,"Alíquota de participação sobre a Receita de Pré-Licenciamento",{"$f":"IF(C2=0,0,F2)","v":{"v":0,"d":"0.00%"}}]
[null,"Alíquota de participação sobre a RLP, até o retorno integral do valor do investimento",{"$f":"IF(C2=0,0,0.8*F2)","v":{"v":0,"d":"0.00%"}}]
[null,"Alíquota de participação sobre a RLP, após o retorno integral do valor do investimento",{"$f":"IF(C2=0,0,0.4*F2)","v":{"v":0,"d":"0.00%"}}]
[null,"Alíquota de participação sobre licenciamento de marcas",{"$f":"IF(C2=0,0,0.4*F2)","v":{"v":0,"d":"0.00%"}}]
[null,"Alíquota de participação sobre novas temporadas de obras seriadas ou longas-metragens de uma mesma franquia ",{"v":0.02,"d":"2.00%"}]
[]
[null,"ATENÇÃO: Verificar se a proporção A/B está de acordo com a proporção máxima para a suplementação de recursos do FSA definida na Chamada Pública (item 5):\n - Até duas vezes (2) para órgãos e entidades do Grupo A (N, NE e CO);\n - Até uma vez e meia (1,5) para órgãos e entidades do Grupo B (MG, ES e S);\n - Até uma vez (1) para órgãos e entidades do Grupo C (RJ e SP);"]

{"sheet":"Arranjos - Comercialização","index":5,"n_rows":29,"n_cols":6,"rows_kept":29,"merged":[[1,1,1,2],[11,1,11,2],[21,1,21,2]]}
[]
[null,"SPCINE 2"]
[null,"Valor correspondente ao investimento do FSA (A)",null,null,"Equity",{"$f":"C5/C7","v":{"$error":"#DIV/0!"}}]
[null,"Valor correspondente ao investimento do Ente Local (B)",null,null,{"v":0.02,"d":"2.00%"},{"$f":"IF(C5<=200000,(0.02*(C5-(C5-200000)))-(0.02*(200000-C5)),0.02*200000)","v":{"v":0,"d":"0.00%"}}]
[null,"Valor correspondente ao investimento total",{"$f":"C3+C4","v":{"v":0,"d":"R$ 0.00"}},null,{"v":0.03,"d":"3%"},{"$f":"IF(AND(C5>200000,C5<=500000),(0.03*(C5-200000)),IF(C5>500000,0.03*300000,0))","v":0}]
[null,"Proporção A/B1:",{"$f":"C3/C4","v":{"$error":"#DIV/0!"}},null,{"v":0.05,"d":"5%"},{"$f":"IF(AND(C5>500000,C5<=1000000),(0.05*(C5-500000)),IF(C5>1000000,0.05*500000,0))","v":0}]
[null,"Orçamento dos itens financiáveis (total do orçamento de comercialização, excetuando gerenciamento)",null,null,{"v":0.08,"d":"8%"},{"$f":"IF(AND(C5>1000000,C5<=3000000),(0.08*(C5-1000000)),IF(C5>3000000,0.08*2000000,0))","v":0}]
[null,"Alíquota de participação sobre a Receita Bruta de Distribuição",{"$f":"(SUM(F4:F8)/C5)/2","v":{"$error":"#DIV/0!"}},null,{"v":0.12,"d":"12%"},"-"]
[null,"Alíquota de participação sobre a Receita Líquida de Distribuição",{"v":0.5,"d":"50.00%"}]
[]
[]
[null,"SPCINE 4"]
[null,"Valor correspondente ao investimento do FSA (A)",null,null,"Equity",{"$f":"C15/C17","v":{"$error":"#DIV/0!"}}]
[null,"Valor correspondente ao investimento do Ente Local (B)",null,null,{"v":0.02,"d":"2%"},{"$f":"IF(C15<=200000,(0.02*(C15-(C15-200000)))-(0.02*(200000-C15)),0.02*200000)","v":0}]
[null,"Valor correspondente ao investimento total",{"$f":"C13+C14","v":{"v":0,"d":"R$ 0.00"}},null,{"v":0.03,"d":"3%"},{"$f":"IF(AND(C15>200000,C15<=500000),(0.03*(C15-200000)),IF(C15>500000,0.03*300000,0))","v":0}]
[null,"Proporção A/B1:",{"$f":"C13/C14","v":{"$error":"#DIV/0!"}},null,{"v":0.05,"d":"5%"},{"$f":"IF(AND(C15>500000,C15<=1000000),(0.05*(C15-500000)),IF(C15>1000000,0.05*500000,0))","v":0}]
[null,"Orçamento dos itens financiáveis (total do orçamento de comercialização, excetuando gerenciamento)",null,null,{"v":0.08,"d":"8%"},{"$f":"IF(AND(C15>1000000,C15<=3000000),(0.08*(C15-1000000)),IF(C15>3000000,0.08*2000000,0))","v":0}]
[null,"Alíquota de participação sobre a Receita Bruta de Distribuição",{"$f":"(SUM(F14:F18)/C15)/2","v":{"$error":"#DIV/0!"}},null,{"v":0.12,"d":"12%"},"-"]
[null,"Alíquota de participação sobre a Receita Líquida de Distribuição",{"$f":"C13/C17","v":{"$error":"#DIV/0!"}}]
[]
[]
[null,"RIOFILME"]
[null,"Valor correspondente ao investimento do FSA (A)",null,null,"Equity",{"$f":"C25/C27","v":{"$error":"#DIV/0!"}}]
[null,"Valor correspondente ao investimento do Ente Local (B)",null,null,{"v":0.02,"d":"2%"},{"$f":"IF(C25<=200000,(0.02*(C25-(C25-200000)))-(0.02*(200000-C25)),0.02*200000)","v":0}]
[null,"Valor correspondente ao investimento total",{"$f":"C23+C24","v":{"v":0,"d":"R$ 0.00"}},null,{"v":0.03,"d":"3%"},{"$f":"IF(AND(C25>200000,C25<=500000),(0.03*(C25-200000)),IF(C25>500000,0.03*300000,0))","v":0}]
[null,"Proporção A/B1:",{"$f":"C23/C24","v":{"$error":"#DIV/0!"}},null,{"v":0.05,"d":"5%"},{"$f":"IF(AND(C25>500000,C25<=1000000),(0.05*(C25-500000)),IF(C25>1000000,0.05*500000,0))","v":0}]
[null,"Orçamento dos itens financiáveis (total do orçamento de comercialização, excetuando gerenciamento)",null,null,{"v":0.08,"d":"8%"},{"$f":"IF(AND(C25>1000000,C25<=3000000),(0.08*(C25-1000000)),IF(C25>3000000,0.08*2000000,0))","v":0}]
[null,"Alíquota de participação sobre a Receita Bruta de Distribuição",{"$f":"(SUM(F24:F28)/C25)/2","v":{"$error":"#DIV/0!"}},null,{"v":0.12,"d":"12%"},"-"]
[null,"Alíquota de participação sobre a Receita Líquida de Distribuição",{"$f":"C23/C27","v":{"$error":"#DIV/0!"}}]

{"sheet":"Games","index":6,"n_rows":7,"n_cols":6,"rows_kept":7}
[]
[null,"Valor correspondente ao investimento do FSA",null,null,"Equity",{"$f":"C2/C3","v":{"$error":"#DIV/0!"}}]
[null,"Orçamento dos itens financiáveis (total do orçamento de produção somado ao gerenciamento)"]
[null,"Alíquota de participação sobre a RLP, até o retorno integral do valor do investimento",{"$f":"IF(C2=0,0,0.8*F2)","v":{"v":0,"d":"0.00%"}}]
[null,"Alíquota de participação sobre a RLP, após o retorno integral do valor do investimento",{"$f":"IF(C2=0,0,0.4*F2)","v":{"v":0,"d":"0.00%"}}]
[null,"Alíquota de participação sobre licenciamento de marcas",{"$f":"IF(C2=0,0,0.4*F2)","v":{"v":0,"d":"0.00%"}}]
[null,"Alíquota de participação sobre novas temporadas de obras seriadas ou longas-metragens de uma mesma franquia ",{"v":0.02,"d":"2.00%"}]